bitfinex-derivatives/quotes_BTCF0:USTF0_20241023
["timestamp","ask_amount","ask_price","bid_price","bid_amount"]
[1729651102243,0.11,67190.0,67189.0,0.0002]
[1729651102545,0.11,67190.0,67189.0,0.12589684]
[1729651103134,0.11,67190.0,67189.0,0.12588008]
[1729651104146,0.11,67190.0,67189.0,0.23130991]
[1729651105441,0.4708,67190.0,67189.0,0.23130991]
[1729651106443,0.5808,67190.0,67189.0,0.23130991]
[1729651106638,0.624465,67190.0,67189.0,0.23130991]
[1729651109948,0.4549,67190.0,67189.0,0.23130991]
[1729651110143,0.3608,67190.0,67189.0,0.23130991]
[1729651110342,0.4708,67190.0,67189.0,0.23130991]
[1729651112658,1.086845,67190.0,67189.0,0.43130991]
[1729651112856,0.44652,67189.0,67177.0,0.1190319]
[1729651113044,0.6743,67190.0,67175.0,0.00223274]
[1729651113045,0.059574,67180.0,67178.0,0.14271299]
[1729651113350,0.47058844,67179.0,67176.0,0.059577]
[1729651113544,0.47058844,67179.0,67175.0,0.02844932]
[1729651113749,0.0462,67178.0,67169.0,0.1190319]
[1729651113938,0.0462,67178.0,67163.0,0.09872]
[1729651113939,0.4708,67170.0,67161.0,0.059591]
[1729651114143,0.4708,67162.0,67161.0,0.059591]
[1729651114342,0.41862717,67162.0,67161.0,0.2029398]
[1729651114562,0.41862717,67162.0,67161.0,0.3219717]
[1729651114855,0.41862717,67162.0,67161.0,0.34860944]
[1729651115046,0.41862717,67162.0,67161.0,0.08622874]
[1729651115248,0.41862717,67162.0,67161.0,0.02663774]
[1729651115445,0.41862717,67162.0,67153.0,0.1190319]
[1729651115643,0.11,67155.0,67154.0,0.02864075]
[1729651115847,0.11,67158.0,67154.0,0.13864075]
[1729651116053,0.11,67158.0,67157.0,0.0002]
[1729651116253,0.17,67159.0,67157.0,0.0002]
[1729651116451,0.17,67159.0,67158.0,0.0002]
[1729651116651,0.30938717,67162.0,67159.0,0.059592]
[1729651116853,0.30862717,67162.0,67161.0,0.2593609]
[1729651117049,0.30862717,67162.0,67161.0,0.1702]
[1729651117257,0.30862717,67162.0,67161.0,0.25931586]
[1729651117440,0.30862717,67162.0,67161.0,0.36540686]
[1729651118054,0.30862717,67162.0,67161.0,0.276291]
[1729651118949,0.25644918,67162.0,67161.0,0.19537394]
[1729651120046,0.25644918,67162.0,67161.0,0.106291]
[1729651120245,0.17,67167.0,67161.0,0.0467]
[1729651120548,0.17,67167.0,67166.0,0.0002]
[1729651120745,0.17,67167.0,67166.0,0.07439024]
[1729651121145,0.17,67167.0,67166.0,0.0002]
[1729651123048,0.5308,67170.0,67167.0,0.059585]
[1729651123256,0.5308,67170.0,67169.0,0.0002]
[1729651127160,0.590383,67170.0,67169.0,0.0002]
[1729651128552,0.590383,67170.0,67169.0,0.02764753]
[1729651130852,0.590383,67170.0,67169.0,0.08723153]
[1729651131053,0.590383,67170.0,67169.0,0.14654207]
[1729651131259,0.590383,67170.0,67169.0,0.11909454]
[1729651134059,0.590383,67170.0,67169.0,0.059784]
[1729651138059,0.590383,67170.0,67169.0,0.13397424]
[1729651138262,0.530383,67170.0,67169.0,0.13397424]
[1729651139070,0.530383,67170.0,67169.0,0.059784]
[1729651139267,0.059584,67168.0,67167.0,0.07419024]
[1729651139471,0.059584,67168.0,67167.0,0.10310558]
[1729651140272,0.169584,67168.0,67167.0,0.10310558]
[1729651140572,0.506224,67168.0,67167.0,0.10310558]
[1729651141176,0.059584,67168.0,67167.0,0.10310558]
[1729651142058,0.059584,67168.0,67167.0,0.19218852]
[1729651143170,0.059584,67168.0,67167.0,0.22636937]
[1729651144170,0.531143,67170.0,67167.0,0.22675537]
[1729651144377,0.059584,67169.0,67168.0,0.1034486]
[1729651144569,0.169584,67169.0,67168.0,0.1034486]
[1729651145767,0.169584,67169.0,67168.0,0.10345224]
[1729651148075,0.891184,67169.0,67168.0,0.10345224]
[1729651148877,0.169584,67169.0,67168.0,0.10345224]
[1729651149179,0.891184,67169.0,67168.0,0.10345224]
[1729651150774,0.781184,67169.0,67168.0,0.27303624]
[1729651150970,0.7216,67169.0,67168.0,0.16303624]
[1729651151169,0.7216,67169.0,67168.0,0.25241574]
[1729651152081,0.8316,67169.0,67168.0,0.25241574]
[1729651152277,0.8316,67169.0,67168.0,0.19006875]
[1729651153477,0.8316,67169.0,67168.0,0.31318953]
[1729651154885,0.8316,67169.0,67168.0,0.28615702]
[1729651157076,0.8316,67169.0,67168.0,0.31238765]
[1729651159488,0.8316,67169.0,67168.0,0.28615702]
[1729651159684,0.891184,67169.0,67168.0,0.28615702]
[1729651159890,1.001184,67169.0,67168.0,0.22657302]
[1729651160076,1.001184,67169.0,67168.0,0.10345224]
[1729651160580,1.001184,67169.0,67168.0,0.1928369]
[1729651160786,1.001184,67169.0,67168.0,0.10345224]
[1729651161673,0.059585,67167.0,67166.0,0.08958466]
[1729651161873,0.157745,67167.0,67166.0,0.08958466]
[1729651162082,0.604385,67167.0,67166.0,0.08958466]
[1729651162384,0.604385,67167.0,67161.0,0.0002]
[1729651162385,0.05959,67162.0,67161.0,0.0002]
[1729651162591,0.4708,67162.0,67161.0,0.12209954]
[1729651163384,0.3608,67162.0,67161.0,0.12209954]
[1729651163584,0.3608,67162.0,67161.0,0.18169054]
[1729651164079,0.4708,67162.0,67161.0,0.18169054]
[1729651164386,0.3608,67162.0,67161.0,0.18169054]
[1729651166787,0.3608,67162.0,67161.0,0.20880355]
[1729651170582,0.3608,67162.0,67161.0,0.18169054]
[1729651172287,0.3608,67162.0,67161.0,0.12209954]
[1729651172493,0.42039,67162.0,67161.0,0.12209954]
[1729651173391,0.42039,67162.0,67161.0,0.0002]
[1729651173875,0.86707,67162.0,67161.0,0.0002]
[1729651176582,0.86707,67162.0,67161.0,0.10147603]
[1729651176782,0.86707,67162.0,67161.0,0.0002]
[1729651179894,0.86707,67162.0,67161.0,0.05973587]
[1729651180095,0.86707,67162.0,67161.0,0.0002]
[1729651180394,0.42039,67162.0,67161.0,0.05972308]
[1729651180585,0.42039,67162.0,67161.0,0.0002]
[1729651180788,0.42039,67162.0,67161.0,0.05972308]
[1729651181084,0.42039,67162.0,67161.0,0.0002]
[1729651183194,0.51807,67162.0,67161.0,0.0002]
[1729651183400,0.51807,67162.0,67161.0,0.05972308]
[1729651183998,0.51807,67162.0,67161.0,0.0002]
[1729651184192,0.51807,67162.0,67161.0,0.05969985]
[1729651185202,0.51807,67162.0,67161.0,0.0002]
[1729651185494,0.51807,67162.0,67161.0,0.05970198]
[1729651185894,0.51807,67162.0,67161.0,0.0002]
[1729651186296,0.73807,67162.0,67161.0,0.05970254]
[1729651186599,0.73807,67162.0,67161.0,0.0002]
[1729651187498,0.87887,67162.0,67161.0,0.0002]
[1729651187801,0.87887,67162.0,67161.0,0.0597069]
[1729651188103,0.87887,67162.0,67161.0,0.0002]
[1729651188303,0.87887,67162.0,67161.0,0.05970714]
[1729651188692,0.87887,67162.0,67161.0,0.0002]
[1729651189199,0.98887,67162.0,67155.0,0.07439149]
[1729651189500,0.98887,67162.0,67151.0,0.059599]
[1729651189501,0.059599,67152.0,67151.0,0.059599]
[1729651189696,0.169599,67152.0,67151.0,0.16004236]
[1729651189897,0.169599,67152.0,67151.0,0.10044336]
[1729651190496,0.279599,67152.0,67151.0,0.10044336]
[1729651190692,0.169599,67152.0,67151.0,0.10044336]
[1729651192202,0.279599,67152.0,67151.0,0.10044336]
[1729651192392,0.169599,67152.0,67151.0,0.10044336]
[1729651195908,0.279599,67152.0,67151.0,0.10044336]
[1729651196202,0.279599,67152.0,67147.0,0.0266884]
[1729651196203,0.059602,67148.0,67147.0,0.0266884]
[1729651196410,0.5808,67148.0,67143.0,0.08926353]
[1729651196710,0.5808,67148.0,67136.0,0.059612]
[1729651196711,0.059608,67141.0,67140.0,0.08926353]
[1729651196897,0.11,67141.0,67140.0,0.08926764]
[1729651197602,0.169608,67141.0,67140.0,0.08926764]
[1729651198496,0.169608,67141.0,67139.0,0.08926764]
[1729651198702,0.4708,67140.0,67139.0,0.08926764]
[1729651199098,0.5189,67140.0,67138.0,0.08926764]
[1729651199607,0.5189,67140.0,67137.0,0.08926764]
[1729651199795,0.11,67138.0,67137.0,0.08926764]
[1729651200595,0.11,67138.0,67132.0,0.059616]
[1729651200901,0.4089,67140.0,67133.0,0.11854931]
[1729651201106,0.4089,67140.0,67139.0,0.0002]
[1729651201903,0.5189,67140.0,67139.0,0.0002]
[1729651207512,0.5189,67140.0,67139.0,0.02763182]
[1729651208205,0.4089,67140.0,67139.0,0.02763182]
[1729651208608,0.4089,67140.0,67139.0,0.08724182]
[1729651208812,0.4089,67140.0,67139.0,0.17651398]
[1729651209027,0.059582,67172.0,67146.0,0.059604]
[1729651209028,0.11,67156.0,67146.0,0.059604]
[1729651209203,0.11,67156.0,67146.0,1.0361603]
[1729651209403,0.3608,67166.0,67154.0,0.3608]
[1729651209404,0.059592,67160.0,67154.0,0.3608]
[1729651209614,0.11,67159.0,67154.0,0.3608]
[1729651209918,0.11,67161.0,67157.0,0.11]
[1729651210119,0.11,67161.0,67160.0,0.361]
[1729651211215,0.059579,67174.0,67163.0,0.059589]
[1729651211400,0.3608,67179.0,67172.0,0.04459587]
[1729651211713,0.3608,67179.0,67167.0,0.3608]
[1729651211714,0.420375,67179.0,67178.0,0.0002]
[1729651212013,0.059575,67179.0,67178.0,0.0002]
[1729651213115,0.229575,67179.0,67178.0,0.0002]
[1729651213905,0.229575,67179.0,67178.0,0.04472752]
[1729651214220,0.229575,67179.0,67178.0,0.0002]
[1729651214418,0.229575,67179.0,67178.0,0.0472]
[1729651214713,0.05957,67184.0,67181.0,0.059572]
[1729651215015,0.05957,67184.0,67183.0,0.361]
[1729651215611,0.05957,67184.0,67183.0,0.40546104]
[1729651216011,0.05957,67184.0,67183.0,0.361]
[1729651216012,0.22957,67184.0,67183.0,0.361]
[1729651218814,0.22957,67184.0,67183.0,0.0002]
[1729651219021,0.22957,67184.0,67183.0,0.361]
[1729651221913,0.05957,67184.0,67183.0,0.361]
[1729651222221,0.17,67192.0,67183.0,0.531]
[1729651222419,0.17,67189.0,67183.0,0.361]
[1729651222609,0.17,67186.0,67183.0,0.361]
[1729651222809,0.059569,67185.0,67183.0,0.361]
[1729651223014,0.059569,67185.0,67184.0,0.05957]
[1729651223415,0.17,67189.0,67183.0,0.361]
[1729651223621,0.3608,67194.0,67187.0,0.17]
[1729651223828,0.17,67201.0,67193.0,0.17]
[1729651223829,0.5308,67201.0,67193.0,0.17]
[1729651224043,0.5308,67201.0,67194.0,0.109161]
[1729651224044,0.059559,67197.0,67194.0,0.109161]
[1729651224216,0.05956,67196.0,67194.0,0.109161]
[1729651224520,0.53156,67201.0,67194.0,0.0496]
[1729651224521,0.05956,67195.0,67194.0,0.0496]
[1729651226316,0.059563,67192.0,67191.0,0.3608]
[1729651230532,0.105863,67192.0,67191.0,0.3608]
[1729651231540,0.105863,67192.0,67183.0,0.0002]
[1729651231727,0.22957,67184.0,67183.0,0.0002]
[1729651232228,1.72957,67184.0,67183.0,0.0002]
[1729651232423,0.39957,67184.0,67183.0,0.0002]
[1729651233132,0.059575,67179.0,67173.0,0.0002]
[1729651233334,0.229575,67179.0,67173.0,0.0002]
[1729651238434,0.229575,67179.0,67174.0,0.04446104]
[1729651238729,0.229575,67179.0,67173.0,0.0002]
[1729651238730,0.229575,67179.0,67173.0,0.04466104]
[1729651239134,0.229575,67179.0,67172.0,0.3608]
[1729651239135,0.17,67174.0,67172.0,0.3608]
[1729651239331,0.10596,67173.0,67172.0,0.3608]
[1729651240331,0.16554,67173.0,67172.0,0.3608]
[1729651241733,0.059587,67165.0,67164.0,0.04446104]
[1729651242047,0.059591,67161.0,67160.0,0.0002]
[1729651242339,0.505591,67161.0,67160.0,0.0002]
[1729651243633,0.952271,67161.0,67160.0,0.0002]
[1729651244146,0.505591,67161.0,67160.0,0.0002]
[1729651250356,0.399591,67161.0,67160.0,0.0002]
[1729651250562,0.335591,67161.0,67160.0,0.0002]
[1729651250763,0.229591,67161.0,67160.0,0.0002]
[1729651252345,0.399591,67161.0,67160.0,0.0002]
[1729651252655,0.229591,67161.0,67160.0,0.0002]
[1729651253964,0.399591,67161.0,67160.0,0.0002]
[1729651254164,0.229591,67161.0,67160.0,0.0002]
[1729651255867,0.399591,67161.0,67160.0,0.0002]
[1729651262967,0.399591,67161.0,67153.0,0.04457774]
[1729651262968,0.34,67161.0,67153.0,0.04457774]
[1729651263264,0.34,67161.0,67148.0,0.0481]
[1729651263265,0.059601,67149.0,67148.0,0.0481]
[1729651263458,0.590401,67149.0,67148.0,0.0481]
[1729651267764,0.696401,67149.0,67148.0,0.0481]
[1729651267969,0.590401,67149.0,67148.0,0.0481]
[1729651268164,0.590401,67149.0,67148.0,0.107702]
[1729651269365,0.5308,67149.0,67148.0,0.107702]
[1729651269566,0.3608,67155.0,67154.0,0.059597]
[1729651269962,0.059596,67155.0,67154.0,0.059597]
[1729651271876,0.17,67156.0,67152.0,0.07399009]
[1729651272074,0.229598,67153.0,67152.0,0.07399009]
[1729651272465,0.229598,67153.0,67152.0,0.17239405]
[1729651272772,0.229598,67153.0,67152.0,0.17239213]
[1729651273373,0.229598,67153.0,67152.0,0.07399009]
[1729651273668,0.17,67153.0,67151.0,0.13359009]
[1729651273871,0.059599,67152.0,67151.0,0.13359009]
[1729651274067,0.059599,67152.0,67151.0,0.23192042]
[1729651274766,0.059599,67152.0,67151.0,0.15793033]
[1729651276270,0.059599,67152.0,67151.0,0.23229542]
[1729651277366,0.059599,67152.0,67151.0,0.23220953]
[1729651277566,0.059599,67152.0,67151.0,0.0596]
[1729651278577,0.059599,67152.0,67151.0,0.15782887]
[1729651279070,0.17,67159.0,67158.0,0.059593]
[1729651279463,0.229592,67159.0,67158.0,0.059593]
[1729651280073,0.229592,67159.0,67158.0,0.13395677]
[1729651280377,0.229592,67159.0,67158.0,0.059593]
[1729651283471,0.229592,67159.0,67158.0,0.420393]
[1729651286976,0.590392,67159.0,67158.0,0.059593]
[1729651288782,0.229592,67159.0,67158.0,0.059593]
[1729651290184,0.229592,67159.0,67155.0,0.07436377]
[1729651290185,0.059595,67156.0,67155.0,0.07436377]
[1729651290377,0.059595,67156.0,67154.0,0.13395977]
[1729651290378,0.059596,67155.0,67154.0,0.13395977]
[1729651290776,0.059596,67155.0,67154.0,0.23187322]
[1729651291184,0.059596,67155.0,67154.0,0.23184467]
[1729651291385,0.059596,67155.0,67154.0,0.23185584]
[1729651291682,0.059596,67155.0,67154.0,0.23182274]
[1729651291870,0.059596,67155.0,67154.0,0.23182119]
[1729651292068,0.059596,67155.0,67154.0,0.1339284]
[1729651292272,0.059596,67155.0,67154.0,0.15751846]
[1729651292482,0.059596,67155.0,67154.0,0.23185002]
[1729651292680,0.059596,67155.0,67154.0,0.13392756]
[1729651293479,0.059596,67155.0,67154.0,0.23185769]
[1729651293671,0.059596,67155.0,67154.0,0.15755625]
[1729651293872,0.059596,67155.0,67154.0,0.23190163]
[1729651294380,0.059596,67155.0,67154.0,0.15755625]
[1729651296476,0.059596,67155.0,67154.0,0.15760092]
[1729651297389,0.059596,67155.0,67154.0,0.24683033]
[1729651297681,0.059596,67155.0,67154.0,0.15760092]
[1729651297872,0.059596,67155.0,67154.0,0.2469185]
[1729651298077,0.059596,67155.0,67154.0,0.24691915]
[1729651298276,0.169596,67155.0,67154.0,0.24691915]
[1729651298781,0.640396,67155.0,67154.0,0.09800492]
[1729651298983,0.640396,67155.0,67146.0,0.059803]
[1729651298984,0.640396,67155.0,67151.0,0.07445697]
[1729651299184,0.0596,67150.0,67148.0,0.07445697]
[1729651299388,0.059602,67148.0,67147.0,0.07445697]
[1729651299578,0.52596,67149.0,67147.0,0.17301266]
[1729651299882,0.059602,67148.0,67147.0,0.07445697]
[1729651300085,0.059602,67148.0,67147.0,0.17304632]
[1729651300388,0.059603,67147.0,67146.0,0.07465697]
[1729651300684,0.059603,67147.0,67146.0,0.17323848]
[1729651300891,0.059603,67147.0,67146.0,0.17323874]
[1729651301279,0.059603,67147.0,67146.0,0.09879424]
[1729651301484,0.059603,67147.0,67146.0,0.17322393]
[1729651301994,0.059603,67147.0,67146.0,0.0002]
[1729651302396,0.229603,67147.0,67146.0,0.0002]
[1729651307681,0.399603,67147.0,67146.0,0.0002]
[1729651309900,0.34,67147.0,67140.0,0.3608]
[1729651310195,0.059606,67145.0,67141.0,0.15796414]
[1729651310388,0.059606,67145.0,67142.0,0.09835614]
[1729651310589,0.059606,67145.0,67143.0,0.09835614]
[1729651310897,0.059606,67145.0,67141.0,0.059608]
[1729651311084,0.059606,67145.0,67142.0,0.09781935]
[1729651311285,0.059606,67145.0,67143.0,0.09781935]
[1729651311585,0.059606,67145.0,67141.0,0.059608]
[1729651311782,0.059606,67145.0,67142.0,0.09781559]
[1729651312084,0.059606,67145.0,67143.0,0.09781559]
[1729651312284,0.17,67142.0,67141.0,0.059608]
[1729651312496,0.17,67144.0,67141.0,0.09782245]
[1729651312680,0.17,67144.0,67143.0,0.059607]
[1729651312889,0.17,67144.0,67143.0,0.15742945]
[1729651314903,0.17,67144.0,67140.0,0.34996932]
[1729651315289,0.17,67144.0,67140.0,0.3608]
[1729651315485,0.17,67144.0,67143.0,0.059607]
[1729651315998,0.059603,67148.0,67140.0,0.2619521]
[1729651316298,0.17,67145.0,67140.0,0.2619521]
[1729651316688,0.059603,67148.0,67140.0,0.28906553]
[1729651316889,0.17,67144.0,67140.0,0.02711343]
[1729651317089,0.17,67144.0,67139.0,0.08951823]
[1729651317601,0.17,67144.0,67143.0,0.059607]
[1729651317804,0.17,67144.0,67135.0,0.00978912]
[1729651317989,0.17,67144.0,67143.0,0.059607]
[1729651322297,0.11,67144.0,67137.0,0.11]
[1729651322504,0.11,67144.0,67141.0,0.3608]
[1729651322697,0.11,67144.0,67143.0,0.059607]
[1729651325192,0.059601,67150.0,67143.0,0.22496227]
[1729651325398,0.11,67149.0,67145.0,0.059605]
[1729651325699,0.11,67149.0,67148.0,0.059602]
[1729651328400,0.059599,67152.0,67151.0,0.0596]
[1729651328598,0.169599,67152.0,67151.0,0.0596]
[1729651328996,0.169599,67152.0,67151.0,0.17445107]
[1729651329200,0.169599,67152.0,67151.0,0.0596]
[1729651329400,0.0563,67154.0,67153.0,0.059598]
[1729651329601,0.11,67157.0,67153.0,0.11]
[1729651329802,0.11,67154.0,67150.0,0.4708]
[1729651330003,0.11,67154.0,67153.0,0.059598]
[1729651332904,0.0596,67151.0,67150.0,0.08685973]
[1729651333107,0.1696,67151.0,67150.0,0.02649973]
[1729651333310,0.11,67151.0,67147.0,0.08388491]
[1729651333611,0.169602,67148.0,67147.0,0.08388491]
[1729651335910,0.169602,67148.0,67147.0,0.29483996]
[1729651337010,0.0521,67150.0,67147.0,0.29483996]
[1729651337215,0.0521,67150.0,67149.0,0.169601]
[1729651337418,0.059593,67159.0,67149.0,0.11]
[1729651337613,0.11,67156.0,67152.0,0.3608]
[1729651337815,0.11,67156.0,67154.0,0.059597]
[1729651338011,0.11,67156.0,67155.0,0.059596]
[1729651338318,0.0545,67158.0,67157.0,0.059594]
[1729651339004,0.2245,67158.0,67157.0,0.059594]
[1729651340908,0.2245,67158.0,67157.0,0.1558343]
[1729651341408,0.2245,67158.0,67157.0,0.2299483]
[1729651342211,0.2245,67158.0,67157.0,0.13394447]
[1729651342616,0.2245,67158.0,67157.0,0.059594]
[1729651343725,0.059594,67157.0,67156.0,0.07435047]
[1729651343904,0.059595,67156.0,67154.0,0.07435047]
[1729651344107,0.17,67155.0,67154.0,0.07435047]
[1729651346320,0.17,67155.0,67154.0,0.17034135]
[1729651348419,0.17,67155.0,67154.0,0.09599088]
[1729651349023,0.059597,67154.0,67153.0,0.07435632]
[1729651349221,0.5316,67155.0,67152.0,0.07435632]
[1729651349423,0.059598,67153.0,67152.0,0.07435632]
[1729651349628,0.059598,67153.0,67152.0,0.17058833]
[1729651350221,0.059598,67153.0,67152.0,0.09623201]
[1729651350419,0.059598,67153.0,67152.0,0.17061028]
[1729651350621,0.059598,67153.0,67152.0,0.09623201]
[1729651350829,0.059598,67153.0,67152.0,0.17061027]
[1729651351018,0.059598,67153.0,67152.0,0.09623201]
[1729651354532,0.059598,67153.0,67152.0,0.18546782]
[1729651355039,0.17076,67155.0,67152.0,0.09623201]
[1729651355040,0.229596,67155.0,67152.0,0.09623201]
[1729651355225,0.229596,67155.0,67153.0,0.18555544]
[1729651355424,0.229596,67155.0,67154.0,0.18555751]
[1729651357238,0.229596,67155.0,67154.0,0.09623408]
[1729651357429,0.2245,67158.0,67154.0,0.09623408]
[1729651357736,0.0545,67158.0,67157.0,0.14894209]
[1729651357926,0.0545,67158.0,67157.0,0.24517617]
[1729651359627,0.58556,67162.0,67161.0,0.059591]
[1729651359934,0.58556,67162.0,67161.0,0.15582508]
[1729651359935,0.28359,67162.0,67161.0,0.15582508]
[1729651360230,0.22359,67162.0,67161.0,0.15566069]
[1729651360740,0.22359,67162.0,67161.0,0.15564978]
[1729651362841,0.22359,67162.0,67161.0,0.09605878]
[1729651363027,0.22359,67162.0,67161.0,0.17050269]
[1729651363334,0.164,67162.0,67160.0,0.07444391]
[1729651363535,0.169591,67161.0,67160.0,0.07444391]
[1729651363732,0.169591,67161.0,67160.0,0.17063526]
[1729651364038,0.169591,67161.0,67160.0,0.09619135]
[1729651365039,0.169591,67161.0,67160.0,0.17064481]
[1729651365233,0.059591,67161.0,67160.0,0.15578335]
[1729651365537,0.169591,67161.0,67160.0,0.15578335]
[1729651365840,0.3608,67163.0,67160.0,0.09619135]
[1729651366038,0.059583,67170.0,67162.0,0.3608]
[1729651366238,0.059583,67170.0,67169.0,0.13403795]
[1729651366440,0.059583,67170.0,67169.0,0.15550741]
[1729651366638,0.059583,67170.0,67169.0,0.24485335]
[1729651367137,0.059583,67170.0,67169.0,0.15550741]
[1729651367736,0.3608,67176.0,67169.0,0.09592441]
[1729651367934,0.11,67175.0,67174.0,0.07441602]
[1729651368138,0.169578,67175.0,67174.0,0.059579]
[1729651368334,0.169578,67175.0,67174.0,0.15501295]
[1729651369233,0.169578,67175.0,67174.0,0.133924]
[1729651369843,0.169578,67175.0,67174.0,0.059579]
[1729651371044,0.05958,67173.0,67172.0,0.0008]
[1729651371343,0.05958,67173.0,67172.0,0.05945623]
[1729651371543,0.1183,67174.0,67171.0,0.05945623]
[1729651371847,0.169581,67172.0,67171.0,0.05945623]
[1729651375344,0.059582,67171.0,67170.0,0.05945623]
[1729651375545,0.169582,67171.0,67170.0,0.05945623]
[1729651378039,0.279582,67171.0,67170.0,0.05945623]
[1729651378239,0.169582,67171.0,67170.0,0.05945623]
[1729651382238,0.169582,67171.0,67167.0,0.13393]
[1729651382239,0.059584,67169.0,67167.0,0.13393]
[1729651382436,0.11,67171.0,67167.0,0.13393]
[1729651382639,0.059584,67168.0,67167.0,0.13393]
[1729651383036,0.169584,67168.0,67167.0,0.13393]
[1729651383337,0.169584,67168.0,67167.0,0.2296754]
[1729651384141,0.169584,67168.0,67167.0,0.1553304]
[1729651385956,0.3608,67175.0,67167.0,0.6524351]
[1729651386156,0.3608,67175.0,67174.0,0.24390953]
[1729651386358,0.060372,67183.0,67174.0,0.20554629]
[1729651386650,0.169572,67183.0,67180.0,0.420373]
[1729651386849,0.169572,67183.0,67182.0,0.05945672]
[1729651387237,0.169572,67183.0,67182.0,0.059572]
[1729651387443,0.169572,67183.0,67180.0,0.3608]
[1729651387444,0.1253,67189.0,67186.0,0.059568]
[1729651387648,0.169568,67187.0,67186.0,0.059568]
[1729651387855,0.169568,67187.0,67186.0,0.420368]
[1729651388652,0.059568,67187.0,67186.0,0.420368]
[1729651388850,0.059568,67187.0,67186.0,0.47979473]
[1729651389356,0.059568,67187.0,67186.0,0.47979839]
[1729651389551,0.059568,67187.0,67186.0,0.47978366]
[1729651389758,0.059568,67187.0,67186.0,0.420368]
[1729651390353,0.059568,67187.0,67186.0,0.47978366]
[1729651390554,0.059568,67187.0,67186.0,0.420368]
[1729651390755,0.059568,67187.0,67186.0,0.47978366]
[1729651391462,0.11,67188.0,67187.0,0.059568]
[1729651397955,0.11,67188.0,67186.0,0.3608]
[1729651398555,0.059568,67187.0,67186.0,0.3608]
[1729651405262,0.059568,67187.0,67186.0,0.420368]
[1729651406752,0.059568,67187.0,67186.0,0.47974047]
[1729651406947,0.059568,67187.0,67186.0,0.420368]
[1729651409068,0.059568,67187.0,67186.0,0.3608]
[1729651409565,0.122468,67187.0,67186.0,0.3608]
[1729651413759,0.122468,67187.0,67186.0,0.43501559]
[1729651414069,0.183768,67187.0,67186.0,0.43501559]
[1729651414768,0.183768,67187.0,67186.0,0.45572371]
[1729651415559,0.183768,67187.0,67186.0,0.54478242]
[1729651416565,0.183768,67187.0,67186.0,0.45572371]
[1729651420173,0.183768,67187.0,67186.0,0.09492371]
[1729651420363,0.183768,67187.0,67186.0,0.45572371]
[1729651420564,0.183768,67187.0,67186.0,0.56913092]
[1729651420763,0.183768,67187.0,67186.0,0.56935038]
[1729651420962,0.183768,67187.0,67186.0,0.3608]
[1729651423765,0.183768,67187.0,67184.0,0.05957]
[1729651424078,0.183768,67187.0,67186.0,0.3608]
[1729651425977,0.293768,67187.0,67186.0,0.3608]
[1729651427870,0.293768,67187.0,67186.0,0.45598453]
[1729651430395,0.293768,67187.0,67186.0,0.55115548]
[1729651430681,0.293768,67187.0,67186.0,0.45597095]
[1729651431381,0.293768,67187.0,67186.0,0.54537633]
[1729651432789,0.293768,67187.0,67186.0,0.18457633]
[1729651432986,0.293768,67187.0,67186.0,0.54537633]
[1729651433189,0.293768,67187.0,67186.0,0.60494433]
[1729651433388,0.293768,67187.0,67186.0,0.51553895]
[1729651433389,0.1729,67187.0,67186.0,0.51553895]
[1729651435986,0.1729,67187.0,67186.0,0.420368]
[1729651437095,0.169568,67187.0,67186.0,0.420368]
[1729651442796,0.169568,67187.0,67186.0,0.3608]
[1729651442988,0.169568,67187.0,67186.0,0.54543252]
[1729651443194,0.169568,67187.0,67186.0,0.4560354]
[1729651443391,0.169568,67187.0,67186.0,0.45601761]
[1729651446601,0.19671712,67187.0,67186.0,0.45601761]
[1729651448091,0.19671712,67187.0,67186.0,0.45596156]
[1729651450207,0.2360673,67187.0,67186.0,0.3608]
[1729651453000,0.19671712,67187.0,67186.0,0.3608]
[1729651453304,0.23607851,67187.0,67186.0,0.3608]
[1729651456692,0.20892939,67187.0,67186.0,0.3608]
[1729651458198,0.169568,67187.0,67186.0,0.56923942]
[1729651459005,0.169568,67187.0,67186.0,0.45589264]
[1729651459399,0.169568,67187.0,67186.0,0.56914073]
[1729651460908,0.169568,67187.0,67186.0,0.20834073]
[1729651461108,0.169568,67187.0,67186.0,0.56914073]
[1729651462602,0.169568,67187.0,67186.0,0.3608]
[1729651462897,0.169568,67187.0,67186.0,0.45580792]
[1729651464111,0.169568,67187.0,67186.0,0.3608]
[1729651464611,0.169568,67187.0,67186.0,0.45586914]
[1729651465012,0.169568,67187.0,67186.0,0.54525856]
[1729651466713,0.169568,67187.0,67186.0,0.45586914]
[1729651467807,0.059568,67187.0,67186.0,0.45586914]
[1729651468010,0.059564,67191.0,67188.0,0.059566]
[1729651468314,0.059566,67190.0,67189.0,0.059566]
[1729651471117,0.169566,67190.0,67189.0,0.059566]
[1729651471502,0.169566,67190.0,67189.0,0.2440145]
[1729651472117,0.169566,67190.0,67189.0,0.14894536]
[1729651472706,0.169566,67190.0,67189.0,0.059566]
[1729651476521,0.20914839,67190.0,67189.0,0.059566]
[1729651476714,0.25510792,67190.0,67189.0,0.059566]
[1729651476918,0.19554192,67190.0,67189.0,0.059566]
[1729651477116,0.169562,67193.0,67189.0,0.11]
[1729651477429,0.169562,67193.0,67191.0,0.059564]
[1729651477430,0.08561175,67192.0,67191.0,0.059564]
[1729651477721,0.03961587,67192.0,67191.0,0.169564]
[1729651478525,0.11,67196.0,67195.0,0.05956]
[1729651478725,0.14995068,67196.0,67195.0,0.42036]
[1729651479724,0.20951068,67196.0,67195.0,0.42036]
[1729651480532,0.16956,67196.0,67195.0,0.514876]
[1729651483126,0.16956,67196.0,67195.0,0.54153716]
[1729651486043,0.16956,67196.0,67195.0,0.514876]
[1729651486936,0.16956,67196.0,67195.0,0.51491579]
[1729651488543,0.20938211,67196.0,67195.0,0.42036]